[Event "*** Titled Tuesday Blitz"]
[Site "Chess.com"]
[Date "2021.04.06"]
[Round "6"]
[White "Irishchessman16"]
[Black "WisdomGame"]
[Result "1-0"]
[WhiteElo "2279"]
[BlackElo "2080"]
[TimeControl "180+1"]
[EndTime "11:05:11 PDT"]
[Termination "Irishchessman16 won by resignation"]

1. e4 {[%clk 0:03:00.9]} 1... c5 {[%clk 0:02:28.7]} 2. Nf3 {[%clk 0:02:55.4]}
2... Nc6 {[%clk 0:02:29.1]} 3. d4 {[%clk 0:02:51.8]} 3... cxd4 {[%clk 0:02:30]}
4. Nxd4 {[%clk 0:02:52.3]} 4... Nf6 {[%clk 0:02:30.9]} 5. Nc3 {[%clk 0:02:52.7]}
5... e5 {[%clk 0:02:30.5]} 6. Ndb5 {[%clk 0:02:51.7]} 6... d6 {[%clk 0:02:30.7]}
7. Bg5 {[%clk 0:02:51.5]} 7... a6 {[%clk 0:02:30.8]} 8. Na3 {[%clk 0:02:52]}
8... b5 {[%clk 0:02:31.4]} 9. Nd5 {[%clk 0:02:52.1]} 9... Be7 {[%clk 0:02:31.9]}
10. Bxf6 {[%clk 0:02:50.4]} 10... gxf6 {[%clk 0:02:32.8]} 11. c3 {[%clk
0:02:51.1]} 11... f5 {[%clk 0:02:32.7]} 12. Nc2 {[%clk 0:02:35]} 12... Be6
{[%clk 0:02:30.8]} 13. exf5 {[%clk 0:02:33.9]} 13... Bxf5 {[%clk 0:02:29.2]} 14.
Nce3 {[%clk 0:02:33.9]} 14... Be6 {[%clk 0:02:29.3]} 15. a4 {[%clk 0:02:34.1]}
15... b4 {[%clk 0:02:28.4]} 16. a5 {[%clk 0:02:30.5]} 16... bxc3 {[%clk
0:02:27.7]} 17. bxc3 {[%clk 0:02:24.2]} 17... Bg5 {[%clk 0:02:26.6]} 18. Qa4
{[%clk 0:02:21.4]} 18... Rc8 {[%clk 0:02:14.3]} 19. Bxa6 {[%clk 0:02:20]} 19...
O-O {[%clk 0:02:06.1]} 20. Bxc8 {[%clk 0:02:17.5]} 20... Qxc8 {[%clk 0:02:07]}
21. O-O {[%clk 0:02:17.1]} 21... Ne7 {[%clk 0:02:02]} 22. Nxe7+ {[%clk
0:02:14.5]} 22... Bxe7 {[%clk 0:02:02.9]} 23. c4 {[%clk 0:02:10.7]} 23... f5
{[%clk 0:02:02.5]} 24. Nd5 {[%clk 0:02:10.1]} 24... Bd8 {[%clk 0:01:59.7]} 25.
a6 {[%clk 0:02:08.7]} 25... Qa8 {[%clk 0:01:56.4]} 26. a7 {[%clk 0:02:08.1]}
26... f4 {[%clk 0:01:56.2]} 27. f3 {[%clk 0:02:03.9]} 27... Kh8 {[%clk
0:01:46.4]} 28. Rfb1 {[%clk 0:01:55.7]} 28... Bh4 {[%clk 0:01:44.3]} 29. Nc7
{[%clk 0:01:43.7]} 29... Qc8 {[%clk 0:01:27.9]} 30. a8=Q {[%clk 0:01:41.4]} 1-0

[Event "*** Titled Tuesday Blitz"]
[Site "Chess.com"]
[Date "2021.04.06"]
[Round "6"]
[White "GMaka"]
[Black "DonPreuss"]
[Result "1-0"]
[WhiteElo "2458"]
[BlackElo "2254"]
[TimeControl "180+1"]
[EndTime "11:05:15 PDT"]
[Termination "GMaka won by resignation"]

1. Nf3 {[%clk 0:03:00.9]} 1... Nc6 {[%clk 0:02:59.8]} 2. d4 {[%clk 0:03:00.6]}
2... e5 {[%clk 0:02:59.4]} 3. d5 {[%clk 0:02:58.2]} 3... e4 {[%clk 0:02:59.2]}
4. dxc6 {[%clk 0:02:57.9]} 4... bxc6 {[%clk 0:02:59.5]} 5. Nd4 {[%clk
0:02:53.5]} 5... Bc5 {[%clk 0:02:56.8]} 6. e3 {[%clk 0:02:53.2]} 6... Ne7 {[%clk
0:02:54.3]} 7. b3 {[%clk 0:02:50.1]} 7... d5 {[%clk 0:02:52.8]} 8. Bb2 {[%clk
0:02:50.4]} 8... O-O {[%clk 0:02:52.1]} 9. Be2 {[%clk 0:02:50.4]} 9... Bd6
{[%clk 0:02:51.7]} 10. c4 {[%clk 0:02:49]} 10... Ng6 {[%clk 0:02:50.3]} 11. Nxc6
{[%clk 0:02:44.4]} 11... Qg5 {[%clk 0:02:49.1]} 12. g3 {[%clk 0:02:41.1]} 12...
Bh3 {[%clk 0:02:45.3]} 13. Qxd5 {[%clk 0:02:39.8]} 13... Ne5 {[%clk 0:02:41.9]}
14. Bxe5 {[%clk 0:02:37.3]} 14... Be6 {[%clk 0:02:35.7]} 15. Qd4 {[%clk
0:02:37]} 15... Rad8 {[%clk 0:01:51.3]} 16. Bxd6 {[%clk 0:02:27]} 16... Rxd6
{[%clk 0:01:50.3]} 17. Qe5 {[%clk 0:02:27.5]} 17... Qh6 {[%clk 0:01:28]} 18. Nd4
{[%clk 0:02:22.9]} 18... Bh3 {[%clk 0:01:26.1]} 19. Nc3 {[%clk 0:02:11.7]} 19...
Bg2 {[%clk 0:01:24.3]} 20. Rg1 {[%clk 0:02:11]} 20... Qxh2 {[%clk 0:01:23.1]}
21. O-O-O {[%clk 0:02:09.8]} 21... f6 {[%clk 0:01:20.2]} 22. Qe7 {[%clk
0:02:01]} 22... Rf7 {[%clk 0:01:15.1]} 23. Qe8+ {[%clk 0:02:00.7]} 23... Rf8
{[%clk 0:01:15.1]} 24. Qh5 {[%clk 0:02:01.6]} 24... Qxh5 {[%clk 0:01:10]} 25.
Bxh5 {[%clk 0:02:02.5]} 25... g6 {[%clk 0:01:09.1]} 26. Rxg2 {[%clk 0:02:02.2]}
26... gxh5 {[%clk 0:01:09.7]} 27. Nf5 {[%clk 0:02:03.1]} 27... Ra6 {[%clk
0:01:09.8]} 28. Rh2 {[%clk 0:02:01.6]} 28... Ra5 {[%clk 0:01:01]} 29. Rxh5
{[%clk 0:01:59.8]} 1-0

[Event "*** Titled Tuesday Blitz"]
[Site "Chess.com"]
[Date "2021.04.06"]
[Round "6"]
[White "Xeniya2005"]
[Black "MustafayevFarid2004"]
[Result "1-0"]
[WhiteElo "2327"]
[BlackElo "2445"]
[TimeControl "180+1"]
[EndTime "11:05:18 PDT"]
[Termination "Xeniya2005 won by resignation"]

1. e4 {[%clk 0:02:56.1]} 1... c6 {[%clk 0:03:00]} 2. d4 {[%clk 0:02:55.1]} 2...
d5 {[%clk 0:02:58.9]} 3. Nd2 {[%clk 0:02:55]} 3... dxe4 {[%clk 0:02:58.9]} 4.
Nxe4 {[%clk 0:02:55.9]} 4... Nd7 {[%clk 0:02:58.7]} 5. Nf3 {[%clk 0:02:52.6]}
5... Ngf6 {[%clk 0:02:58]} 6. Ng3 {[%clk 0:02:49.6]} 6... e6 {[%clk 0:02:57.7]}
7. Bd3 {[%clk 0:02:47.9]} 7... c5 {[%clk 0:02:56.9]} 8. c3 {[%clk 0:02:46]} 8...
cxd4 {[%clk 0:02:53.9]} 9. Nxd4 {[%clk 0:02:43]} 9... Bc5 {[%clk 0:02:52.7]} 10.
Be3 {[%clk 0:02:41.8]} 10... Nd5 {[%clk 0:02:47.6]} 11. Qe2 {[%clk 0:02:25.4]}
11... Nxe3 {[%clk 0:02:23.4]} 12. Qxe3 {[%clk 0:02:21]} 12... O-O {[%clk
0:02:09.9]} 13. Bc2 {[%clk 0:01:50.8]} 13... e5 {[%clk 0:01:46.5]} 14. Qd3
{[%clk 0:01:49]} 14... g6 {[%clk 0:01:42.4]} 15. Nb3 {[%clk 0:01:43]} 15... Qb6
{[%clk 0:01:38.7]} 16. O-O {[%clk 0:01:38.7]} 16... Nf6 {[%clk 0:01:35.6]} 17.
Nxc5 {[%clk 0:01:32.9]} 17... Qxc5 {[%clk 0:01:36.3]} 18. Qf3 {[%clk 0:01:31.9]}
18... Kg7 {[%clk 0:01:24.3]} 19. Qxf6+ {[%clk 0:01:27.3]} 19... Kxf6 {[%clk
0:01:19.9]} 20. Ne4+ {[%clk 0:01:26.1]} 20... Ke7 {[%clk 0:01:18.9]} 21. Nxc5
{[%clk 0:01:27]} 1-0

[Event "*** Titled Tuesday Blitz"]
[Site "Chess.com"]
[Date "2021.04.06"]
[Round "6"]
[White "AldokhinIvan"]
[Black "AlexOstrovskiy"]
[Result "0-1"]
[WhiteElo "2523"]
[BlackElo "2751"]
[TimeControl "180+1"]
[EndTime "11:05:21 PDT"]
[Termination "AlexOstrovskiy won by resignation"]

1. e4 {[%clk 0:02:58.8]} 1... d5 {[%clk 0:02:59.5]} 2. exd5 {[%clk 0:02:58.7]}
2... Nf6 {[%clk 0:02:59.9]} 3. Nf3 {[%clk 0:02:56.8]} 3... Bg4 {[%clk
0:02:58.3]} 4. Be2 {[%clk 0:02:56.6]} 4... Qxd5 {[%clk 0:02:57.8]} 5. Nc3 {[%clk
0:02:56.2]} 5... Qf5 {[%clk 0:02:53.7]} 6. h3 {[%clk 0:02:43.5]} 6... Bxf3
{[%clk 0:02:53.9]} 7. Bxf3 {[%clk 0:02:43.4]} 7... Nc6 {[%clk 0:02:54.6]} 8. d4
{[%clk 0:02:29.7]} 8... e6 {[%clk 0:02:54.1]} 9. Be3 {[%clk 0:02:04.8]} 9... Rd8
{[%clk 0:02:51.2]} 10. Qd2 {[%clk 0:01:36.3]} 10... Bb4 {[%clk 0:02:42.8]} 11.
a3 {[%clk 0:01:28]} 11... Ba5 {[%clk 0:02:42.3]} 12. O-O-O {[%clk 0:01:14.2]}
12... O-O {[%clk 0:02:40.1]} 13. Bxc6 {[%clk 0:01:04.9]} 13... bxc6 {[%clk
0:02:40]} 14. g4 {[%clk 0:01:05]} 14... Qg6 {[%clk 0:02:35.1]} 15. Qe2 {[%clk
0:00:56.6]} 15... Bxc3 {[%clk 0:02:33.4]} 16. bxc3 {[%clk 0:00:56.5]} 16... Rb8
{[%clk 0:02:23]} 17. f3 {[%clk 0:00:48.7]} 17... Nd5 {[%clk 0:02:21.8]} 18. Bd2
{[%clk 0:00:45.4]} 18... Rb6 {[%clk 0:02:12.3]} 19. c4 {[%clk 0:00:45.3]} 19...
Rfb8 {[%clk 0:02:11.9]} 20. Ba5 {[%clk 0:00:33.8]} 20... Qg5+ {[%clk 0:02:09.7]}
0-1

[Event "*** Titled Tuesday Blitz"]
[Site "Chess.com"]
[Date "2021.04.06"]
[Round "6"]
[White "KrolPawel92OnTwitch"]
[Black "GameOverBro"]
[Result "0-1"]
[WhiteElo "2640"]
[BlackElo "2527"]
[TimeControl "180+1"]
[EndTime "11:05:31 PDT"]
[Termination "GameOverBro won by resignation"]

1. e4 {[%clk 0:03:00.9]} 1... d6 {[%clk 0:02:58.1]} 2. d4 {[%clk 0:03:00.6]}
2... Nf6 {[%clk 0:02:57.7]} 3. f3 {[%clk 0:02:59.8]} 3... e5 {[%clk 0:02:57.1]}
4. dxe5 {[%clk 0:03:00.1]} 4... dxe5 {[%clk 0:02:57.1]} 5. Qxd8+ {[%clk
0:03:01]} 5... Kxd8 {[%clk 0:02:57.5]} 6. Nc3 {[%clk 0:03:01.7]} 6... Be6 {[%clk
0:02:57.5]} 7. Be3 {[%clk 0:03:01.5]} 7... Nbd7 {[%clk 0:02:57.2]} 8. O-O-O
{[%clk 0:03:02.2]} 8... c6 {[%clk 0:02:57.3]} 9. a3 {[%clk 0:02:51.3]} 9... a5
{[%clk 0:02:54.7]} 10. Na4 {[%clk 0:02:48.5]} 10... Kc7 {[%clk 0:02:53.7]} 11.
h4 {[%clk 0:02:45.2]} 11... b5 {[%clk 0:02:52.9]} 12. Nc3 {[%clk 0:02:44.7]}
12... b4 {[%clk 0:02:46.9]} 13. axb4 {[%clk 0:02:44.7]} 13... axb4 {[%clk
0:02:46.8]} 14. Nb1 {[%clk 0:02:45.1]} 14... Bc5 {[%clk 0:02:43.3]} 15. Bxc5
{[%clk 0:02:42.7]} 15... Nxc5 {[%clk 0:02:44.2]} 16. b3 {[%clk 0:02:40.8]} 16...
h5 {[%clk 0:02:37.4]} 17. Kb2 {[%clk 0:02:37.8]} 17... Ra7 {[%clk 0:02:32]} 18.
Nh3 {[%clk 0:02:34.5]} 18... Rha8 {[%clk 0:02:31.8]} 19. Kc1 {[%clk 0:02:14.6]}
19... Ra2 {[%clk 0:02:29.1]} 20. Rd2 {[%clk 0:02:10.1]} 20... Bxb3 {[%clk
0:02:26]} 21. cxb3 {[%clk 0:02:09.4]} 21... Nxb3+ {[%clk 0:02:25.1]} 22. Kd1
{[%clk 0:02:10.3]} 22... Nxd2 {[%clk 0:02:20.5]} 23. Nxd2 {[%clk 0:02:11.2]}
23... Rb2 {[%clk 0:02:15.5]} 24. Kc1 {[%clk 0:01:47.6]} 24... Raa2 {[%clk
0:02:10.3]} 25. Nc4 {[%clk 0:01:47.6]} 25... Rc2+ {[%clk 0:02:08.7]} 26. Kb1
{[%clk 0:01:48.2]} 26... Nd7 {[%clk 0:01:51.6]} 27. g4 {[%clk 0:01:31.7]} 27...
Nc5 {[%clk 0:01:50.3]} 28. Ne3 {[%clk 0:00:53.6]} 28... Rab2+ {[%clk 0:01:45.2]}
0-1

[Event "*** Titled Tuesday Blitz"]
[Site "Chess.com"]
[Date "2021.04.06"]
[Round "6"]
[White "kirillshevchenko"]
[Black "Kildepiotr"]
[Result "1-0"]
[WhiteElo "2834"]
[BlackElo "2667"]
[TimeControl "180+1"]
[EndTime "11:05:42 PDT"]
[Termination "kirillshevchenko won by resignation"]

1. e4 {[%clk 0:03:00.9]} 1... g6 {[%clk 0:02:58.5]} 2. d4 {[%clk 0:02:59.9]}
2... Bg7 {[%clk 0:02:58.7]} 3. Nc3 {[%clk 0:03:00.5]} 3... c6 {[%clk 0:02:58.8]}
4. f4 {[%clk 0:02:53.5]} 4... d5 {[%clk 0:02:58.5]} 5. e5 {[%clk 0:02:54]} 5...
Nh6 {[%clk 0:02:58.2]} 6. Nf3 {[%clk 0:02:51.3]} 6... Bg4 {[%clk 0:02:57.3]} 7.
Be3 {[%clk 0:02:51.3]} 7... Nf5 {[%clk 0:02:56.8]} 8. Bf2 {[%clk 0:02:51.6]}
8... h5 {[%clk 0:02:56.8]} 9. h3 {[%clk 0:02:50.5]} 9... Bxf3 {[%clk 0:02:56.7]}
10. Qxf3 {[%clk 0:02:51.4]} 10... h4 {[%clk 0:02:57.5]} 11. Bd3 {[%clk 0:02:52]}
11... e6 {[%clk 0:02:57.5]} 12. Ne2 {[%clk 0:02:52.5]} 12... Qb6 {[%clk
0:02:56]} 13. O-O {[%clk 0:02:50.7]} 13... Bf8 {[%clk 0:02:55.1]} 14. b3 {[%clk
0:02:49.5]} 14... c5 {[%clk 0:02:54.8]} 15. c4 {[%clk 0:02:49.4]} 15... Nxd4
{[%clk 0:02:47.6]} 16. Nxd4 {[%clk 0:02:36.5]} 16... cxd4 {[%clk 0:02:48.5]} 17.
cxd5 {[%clk 0:02:37.1]} 17... exd5 {[%clk 0:02:47.9]} 18. Qxd5 {[%clk
0:02:35.9]} 18... Nc6 {[%clk 0:02:42.1]} 19. Bc4 {[%clk 0:02:29.5]} 19... Qc7
{[%clk 0:02:37.5]} 20. e6 {[%clk 0:02:29.9]} 20... f5 {[%clk 0:02:29.9]} 21. e7
{[%clk 0:02:30]} 21... Bxe7 {[%clk 0:02:24.9]} 22. Qf7+ {[%clk 0:02:28]} 22...
Kd8 {[%clk 0:02:25.1]} 23. Rfe1 {[%clk 0:02:23.9]} 23... Qxf4 {[%clk 0:02:14.8]}
24. Rad1 {[%clk 0:02:17.8]} 24... Bd6 {[%clk 0:02:11.1]} 25. Be6 {[%clk
0:02:08.5]} 25... Be7 {[%clk 0:01:59.2]} 26. Bd5 {[%clk 0:01:34.9]} 26... Rf8
{[%clk 0:01:55.4]} 27. Qxg6 {[%clk 0:01:32]} 27... Bd6 {[%clk 0:01:50.3]} 28.
Bxh4+ {[%clk 0:01:32]} 28... Kc7 {[%clk 0:01:49.5]} 29. g3 {[%clk 0:01:29.5]}
29... Ne5 {[%clk 0:01:20.9]} 30. Qg7+ {[%clk 0:01:23.9]} 30... Rf7 {[%clk
0:01:17.9]} 31. Qxf7+ {[%clk 0:01:24.2]} 31... Nxf7 {[%clk 0:01:15.9]} 32. gxf4
{[%clk 0:01:24.5]} 1-0

[Event "*** Titled Tuesday Blitz"]
[Site "Chess.com"]
[Date "2021.04.06"]
[Round "6"]
[White "nss13"]
[Black "xozr"]
[Result "0-1"]
[WhiteElo "2512"]
[BlackElo "2378"]
[TimeControl "180+1"]
[EndTime "11:05:47 PDT"]
[Termination "xozr won by resignation"]

1. e4 {[%clk 0:03:00.9]} 1... c5 {[%clk 0:02:59.5]} 2. Nf3 {[%clk 0:03:00.3]}
2... Nc6 {[%clk 0:02:58.5]} 3. Bb5 {[%clk 0:02:59.7]} 3... Nd4 {[%clk
0:02:58.3]} 4. Nxd4 {[%clk 0:02:58.7]} 4... cxd4 {[%clk 0:02:59.2]} 5. c3 {[%clk
0:02:43.7]} 5... a6 {[%clk 0:02:58.5]} 6. Ba4 {[%clk 0:02:31.4]} 6... b5 {[%clk
0:02:58.1]} 7. Bb3 {[%clk 0:02:30.8]} 7... Bb7 {[%clk 0:02:57.9]} 8. Qe2 {[%clk
0:02:07.7]} 8... dxc3 {[%clk 0:02:54.9]} 9. dxc3 {[%clk 0:02:07.1]} 9... g6
{[%clk 0:02:52.9]} 10. O-O {[%clk 0:02:06.3]} 10... Bg7 {[%clk 0:02:52.9]} 11.
Bf4 {[%clk 0:02:03.4]} 11... Nf6 {[%clk 0:02:51.9]} 12. Nd2 {[%clk 0:02:00]}
12... O-O {[%clk 0:02:51.5]} 13. Rad1 {[%clk 0:01:28.3]} 13... Qb6 {[%clk
0:02:41.9]} 14. Be3 {[%clk 0:01:23.9]} 14... Qc7 {[%clk 0:02:38.3]} 15. f3
{[%clk 0:01:21.7]} 15... d5 {[%clk 0:02:35.5]} 16. exd5 {[%clk 0:01:10.5]} 16...
Nxd5 {[%clk 0:02:35.3]} 17. Bf2 {[%clk 0:00:54.4]} 17... Nf4 {[%clk 0:02:30.7]}
18. Qe3 {[%clk 0:00:40.4]} 18... Bh6 {[%clk 0:02:20.6]} 19. Qc5 {[%clk
0:00:20.3]} 19... Qxc5 {[%clk 0:01:56.2]} 20. Bxc5 {[%clk 0:00:21.2]} 20... Nd3
{[%clk 0:01:56]} 21. Ne4 {[%clk 0:00:20.4]} 21... Nxc5 {[%clk 0:01:50.7]} 22.
Nxc5 {[%clk 0:00:20.1]} 22... Be3+ {[%clk 0:01:50.5]} 0-1

[Event "*** Titled Tuesday Blitz"]
[Site "Chess.com"]
[Date "2021.04.06"]
[Round "6"]
[White "MarcoRiehle"]
[Black "ChessAurochs"]
[Result "1-0"]
[WhiteElo "2673"]
[BlackElo "2519"]
[TimeControl "180+1"]
[EndTime "11:05:50 PDT"]
[Termination "MarcoRiehle won by resignation"]

1. e4 {[%clk 0:03:00.9]} 1... e5 {[%clk 0:02:55.3]} 2. Nf3 {[%clk 0:03:00.4]}
2... Nc6 {[%clk 0:02:55.6]} 3. Bc4 {[%clk 0:02:59.2]} 3... Nf6 {[%clk
0:02:55.5]} 4. d4 {[%clk 0:02:58.7]} 4... exd4 {[%clk 0:02:54.8]} 5. O-O {[%clk
0:02:57.9]} 5... Nxe4 {[%clk 0:02:54.4]} 6. Nc3 {[%clk 0:02:57.2]} 6... Nxc3
{[%clk 0:02:22.4]} 7. bxc3 {[%clk 0:02:56.9]} 7... d5 {[%clk 0:02:22.5]} 8. Bd3
{[%clk 0:02:56.1]} 8... dxc3 {[%clk 0:02:18.4]} 9. Re1+ {[%clk 0:02:55.8]} 9...
Be7 {[%clk 0:02:16.2]} 10. Ng5 {[%clk 0:02:56.2]} 10... Be6 {[%clk 0:01:57.9]}
11. Rxe6 {[%clk 0:02:47.4]} 11... fxe6 {[%clk 0:01:58.8]} 12. Nxe6 {[%clk
0:02:48.2]} 12... Qd6 {[%clk 0:01:53.5]} 13. Nxg7+ {[%clk 0:02:47.9]} 13... Kd8
{[%clk 0:01:49.3]} 14. Bf5 {[%clk 0:02:39.2]} 14... Qf6 {[%clk 0:01:01.2]} 15.
Qxd5+ {[%clk 0:02:27.4]} 15... Qd6 {[%clk 0:00:48.7]} 16. Ne6+ {[%clk
0:02:23.2]} 16... Ke8 {[%clk 0:00:45.8]} 17. Ng7+ {[%clk 0:02:12.6]} 17... Kf8
{[%clk 0:00:28.5]} 18. Ne6+ {[%clk 0:02:12.3]} 18... Ke8 {[%clk 0:00:28.8]} 19.
Qf3 {[%clk 0:02:06.9]} 19... Ne5 {[%clk 0:00:12.5]} 20. Qh5+ {[%clk 0:02:04.7]}
20... Nf7 {[%clk 0:00:10.6]} 21. Bf4 {[%clk 0:02:01.2]} 21... Qd5 {[%clk
0:00:07.1]} 22. Nxc7+ {[%clk 0:02:00.9]} 1-0

[Event "*** Titled Tuesday Blitz"]
[Site "Chess.com"]
[Date "2021.04.06"]
[Round "6"]
[White "Triumphmate"]
[Black "ChampStan"]
[Result "1-0"]
[WhiteElo "2369"]
[BlackElo "2039"]
[TimeControl "180+1"]
[EndTime "11:05:54 PDT"]
[Termination "Triumphmate won by resignation"]

1. e4 {[%clk 0:03:00.9]} 1... e5 {[%clk 0:02:59.3]} 2. Nf3 {[%clk 0:03:01.4]}
2... Nc6 {[%clk 0:02:58.9]} 3. Nc3 {[%clk 0:03:01.8]} 3... Nf6 {[%clk
0:02:58.4]} 4. Bb5 {[%clk 0:03:02.1]} 4... Nd4 {[%clk 0:02:58.3]} 5. Ba4 {[%clk
0:03:01.8]} 5... c6 {[%clk 0:02:57.4]} 6. d3 {[%clk 0:03:02]} 6... a5 {[%clk
0:02:46.2]} 7. Bb3 {[%clk 0:03:01.2]} 7... Nxb3 {[%clk 0:02:19.9]} 8. axb3
{[%clk 0:03:00.5]} 8... d6 {[%clk 0:02:20.2]} 9. h3 {[%clk 0:02:59.9]} 9... Be7
{[%clk 0:02:19]} 10. O-O {[%clk 0:02:59.9]} 10... O-O {[%clk 0:02:18.5]} 11. Bd2
{[%clk 0:02:53.2]} 11... Nd7 {[%clk 0:02:12.8]} 12. Nh2 {[%clk 0:02:51.2]} 12...
Nc5 {[%clk 0:02:10]} 13. f4 {[%clk 0:02:51.1]} 13... exf4 {[%clk 0:02:09.9]} 14.
Bxf4 {[%clk 0:02:52]} 14... Ne6 {[%clk 0:02:08.4]} 15. Be3 {[%clk 0:02:51.2]}
15... d5 {[%clk 0:02:08.7]} 16. exd5 {[%clk 0:02:50.6]} 16... cxd5 {[%clk
0:02:09.6]} 17. d4 {[%clk 0:02:51.5]} 17... Bd6 {[%clk 0:01:51.3]} 18. Nf3
{[%clk 0:02:50.4]} 18... Bc7 {[%clk 0:01:49.1]} 19. Qe1 {[%clk 0:02:45.5]} 19...
Ra6 {[%clk 0:01:40.8]} 20. Qf2 {[%clk 0:02:41.6]} 20... Rc6 {[%clk 0:01:36.8]}
21. Rae1 {[%clk 0:02:40.9]} 21... f6 {[%clk 0:01:25.8]} 22. Nh4 {[%clk
0:02:27.6]} 22... Qd6 {[%clk 0:01:16.9]} 23. g4 {[%clk 0:02:21.7]} 23... Qd7
{[%clk 0:01:06.2]} 24. Nf5 {[%clk 0:02:18.7]} 24... b6 {[%clk 0:00:59]} 25. Qf3
{[%clk 0:02:16]} 25... Ba6 {[%clk 0:00:57.1]} 26. Rf2 {[%clk 0:02:14.9]} 26...
Rd8 {[%clk 0:00:50]} 27. Nxd5 {[%clk 0:01:47]} 27... Qd6 {[%clk 0:00:48.6]} 28.
Nde7+ {[%clk 0:01:41.6]} 1-0

[Event "*** Titled Tuesday Blitz"]
[Site "Chess.com"]
[Date "2021.04.06"]
[Round "6"]
[White "PavelShkapenko"]
[Black "mishanick"]
[Result "1/2-1/2"]
[WhiteElo "2730"]
[BlackElo "2934"]
[TimeControl "180+1"]
[EndTime "11:05:55 PDT"]
[Termination "Game drawn by repetition"]

1. e4 {[%clk 0:03:00.9]} 1... c5 {[%clk 0:03:00]} 2. c3 {[%clk 0:03:00.1]} 2...
Nf6 {[%clk 0:02:59.8]} 3. e5 {[%clk 0:03:00.5]} 3... Nd5 {[%clk 0:03:00.5]} 4.
d4 {[%clk 0:03:01.4]} 4... cxd4 {[%clk 0:03:01.4]} 5. cxd4 {[%clk 0:03:01.6]}
5... d6 {[%clk 0:03:01.8]} 6. Nf3 {[%clk 0:03:01.8]} 6... Nc6 {[%clk 0:03:02.3]}
7. Bc4 {[%clk 0:03:01.9]} 7... dxe5 {[%clk 0:03:02.9]} 8. Nxe5 {[%clk
0:03:01.2]} 8... e6 {[%clk 0:03:00.2]} 9. O-O {[%clk 0:03:00.3]} 9... Bd6 {[%clk
0:03:00.2]} 10. Bxd5 {[%clk 0:02:59]} 10... exd5 {[%clk 0:02:58.8]} 11. Bf4
{[%clk 0:02:59.5]} 11... Bxe5 {[%clk 0:02:56.4]} 12. Bxe5 {[%clk 0:02:58.9]}
12... O-O {[%clk 0:02:56.2]} 13. Nc3 {[%clk 0:02:55.9]} 13... Be6 {[%clk
0:02:43.3]} 14. Re1 {[%clk 0:02:54.6]} 14... Qb6 {[%clk 0:02:41.1]} 15. Qd2
{[%clk 0:02:53.8]} 15... Rfe8 {[%clk 0:02:34]} 16. Bxg7 {[%clk 0:02:45.1]} 16...
Kxg7 {[%clk 0:02:26]} 17. Qg5+ {[%clk 0:02:45]} 17... Kh8 {[%clk 0:00:43.1]} 18.
Qf6+ {[%clk 0:02:43.6]} 18... Kg8 {[%clk 0:00:43]} 19. Qg5+ {[%clk 0:02:23.6]}
19... Kf8 {[%clk 0:00:19.3]} 20. Qh6+ {[%clk 0:02:21.7]} 20... Kg8 {[%clk
0:00:15]} 21. Qg5+ {[%clk 0:01:59.5]} 21... Kf8 {[%clk 0:00:07.3]} 22. Qh6+
{[%clk 0:01:59]} 22... Kg8 {[%clk 0:00:04.5]} 23. Qg5+ {[%clk 0:01:58.8]}
1/2-1/2

[Event "*** Titled Tuesday Blitz"]
[Site "Chess.com"]
[Date "2021.04.06"]
[Round "6"]
[White "LileKoridze"]
[Black "Spencenzug"]
[Result "1-0"]
[WhiteElo "2461"]
[BlackElo "2256"]
[TimeControl "180+1"]
[EndTime "11:05:55 PDT"]
[Termination "LileKoridze won by resignation"]

1. d4 {[%clk 0:03:00.9]} 1... Nf6 {[%clk 0:02:59.6]} 2. c4 {[%clk 0:03:00.6]}
2... c5 {[%clk 0:03:00.2]} 3. d5 {[%clk 0:03:00.2]} 3... e6 {[%clk 0:03:00.8]}
4. Nc3 {[%clk 0:03:00]} 4... exd5 {[%clk 0:03:01.4]} 5. cxd5 {[%clk 0:03:00.1]}
5... d6 {[%clk 0:03:02.1]} 6. Nf3 {[%clk 0:03:00.2]} 6... g6 {[%clk 0:03:02.8]}
7. g3 {[%clk 0:02:55.9]} 7... Bg7 {[%clk 0:03:02.7]} 8. Bg2 {[%clk 0:02:56.8]}
8... O-O {[%clk 0:03:03]} 9. O-O {[%clk 0:02:57.7]} 9... a6 {[%clk 0:02:39.2]}
10. a4 {[%clk 0:02:57.1]} 10... Nbd7 {[%clk 0:02:39.8]} 11. Nd2 {[%clk
0:02:56.4]} 11... Re8 {[%clk 0:02:40.3]} 12. Nc4 {[%clk 0:02:56]} 12... Nb6
{[%clk 0:02:40.7]} 13. Na3 {[%clk 0:02:55.1]} 13... Rb8 {[%clk 0:02:35.9]} 14.
a5 {[%clk 0:02:53.2]} 14... Na8 {[%clk 0:02:36.2]} 15. Nc4 {[%clk 0:02:53]}
15... Nc7 {[%clk 0:02:35.1]} 16. Bf4 {[%clk 0:02:52.6]} 16... Bf8 {[%clk
0:02:24.2]} 17. e4 {[%clk 0:02:48.7]} 17... Nb5 {[%clk 0:02:24.2]} 18. e5 {[%clk
0:02:41.8]} 18... dxe5 {[%clk 0:02:14.1]} 19. Bxe5 {[%clk 0:02:40.2]} 19... Nd6
{[%clk 0:02:03.6]} 20. Nxd6 {[%clk 0:02:25.5]} 20... Bxd6 {[%clk 0:02:02.8]} 21.
Bxd6 {[%clk 0:02:19.9]} 21... Qxd6 {[%clk 0:02:03.7]} 22. Re1 {[%clk 0:02:20.5]}
22... Bf5 {[%clk 0:01:49.6]} 23. Qb3 {[%clk 0:02:10.6]} 23... Rxe1+ {[%clk
0:01:10.2]} 24. Rxe1 {[%clk 0:02:09.2]} 24... b5 {[%clk 0:01:10.8]} 25. axb6
{[%clk 0:02:07.4]} 25... Rxb6 {[%clk 0:01:11]} 26. Qa3 {[%clk 0:02:06.5]} 26...
Bd3 {[%clk 0:00:58.3]} 27. Na4 {[%clk 0:02:03.1]} 27... Bb5 {[%clk 0:00:53.4]}
28. Nxb6 {[%clk 0:02:02.4]} 28... Qxb6 {[%clk 0:00:54.3]} 29. Qc3 {[%clk
0:02:02]} 29... Ne8 {[%clk 0:00:51.1]} 30. Bf1 {[%clk 0:01:57.1]} 30... Nd6
{[%clk 0:00:50.6]} 31. Bxb5 {[%clk 0:01:56.3]} 31... axb5 {[%clk 0:00:51.5]} 32.
Qf6 {[%clk 0:01:54.9]} 32... Qc7 {[%clk 0:00:48]} 33. Re7 {[%clk 0:01:52.8]}
33... Qb8 {[%clk 0:00:41.5]} 34. Rd7 {[%clk 0:01:53]} 34... Ne8 {[%clk
0:00:39.3]} 35. Qxf7+ {[%clk 0:01:52.8]} 1-0